[Event "15e Open International de Quenza"]
[Site "Quenza"]
[Date "2026.07.05"]
[Round "9.9"]
[White "BATSIASHVILI, Nino"]
[Black "FRESSINET, Laurent"]
[Result "0-1"]
[TimeControl "5min+3s"]
[WhiteTitle "GM"]
[BlackTitle "GM"]
[WhiteFideId "-"]
[BlackFideId "-"]
[WhiteElo "2306"]
[BlackElo "2565"]

1. d4 {[%clk 00:05:03]} {[%emt 00:00:01]} Nf6 {[%clk 00:05:03]} {[%emt
00:00:01]} 2. c4 {[%clk 00:05:03]} {[%emt 00:00:02]} e6 {[%clk 00:05:03]}
{[%emt 00:00:02]} 3. Nc3 {[%clk 00:05:03]} Bb4 {[%clk 00:05:03]} {[%emt
00:00:02]} 4. Nf3 {[%clk 00:05:03]} {[%emt 00:00:01]} d5 {[%clk 00:05:03]}
{[%emt 00:00:03]} 5. Qa4+ {[%clk 00:04:49]} {[%emt 00:00:18]} Nc6 {[%clk
00:05:03]} {[%emt 00:00:01]} 6. a3 {[%clk 00:04:45]} {[%emt 00:00:08]} Bxc3+
{[%clk 00:04:57]} {[%emt 00:00:09]} 7. bxc3 {[%clk 00:04:45]} {[%emt 00:00:01]}
Ne4 {[%clk 00:04:55]} {[%emt 00:00:04]} 8. e3 {[%clk 00:04:31]} {[%emt
00:00:17]} O-O {[%clk 00:04:51]} {[%emt 00:00:07]} 9. Bd3 {[%clk 00:04:26]}
{[%emt 00:00:09]} Nxc3 {[%clk 00:04:36]} {[%emt 00:00:18]} 10. Qc2 {[%clk
00:04:20]} {[%emt 00:00:09]} Ne4 {[%clk 00:04:36]} {[%emt 00:00:01]} 11. Bxe4
{[%clk 00:04:07]} {[%emt 00:00:17]} dxe4 {[%clk 00:04:36]} {[%emt 00:00:01]} 12.
Qxe4 {[%clk 00:04:07]} {[%emt 00:00:02]} Na5 {[%clk 00:04:36]} {[%emt
00:00:02]} 13. Qc2 {[%clk 00:03:54]} {[%emt 00:00:17]} c5 {[%clk 00:04:34]}
{[%emt 00:00:05]} 14. Bb2 {[%clk 00:03:46]} {[%emt 00:00:10]} cxd4 {[%clk
00:04:22]} {[%emt 00:00:15]} 15. exd4 {[%clk 00:03:46]} {[%emt 00:00:02]} Bd7
{[%clk 00:04:22]} {[%emt 00:00:02]} 16. h4 {[%clk 00:03:36]} {[%emt 00:00:13]}
Rc8 {[%clk 00:03:53]} {[%emt 00:00:33]} 17. Ng5 {[%clk 00:03:24]} {[%emt
00:00:15]} f5 {[%clk 00:03:53]} {[%emt 00:00:01]} 18. c5 {[%clk 00:03:22]}
{[%emt 00:00:05]} h6 {[%clk 00:03:36]} {[%emt 00:00:20]} 19. Nh3 {[%clk
00:03:07]} {[%emt 00:00:18]} Qxh4 {[%clk 00:03:11]} {[%emt 00:00:28]} 20. Qc3
{[%clk 00:02:57]} {[%emt 00:00:13]} b6 {[%clk 00:03:03]} {[%emt 00:00:12]} 21.
O-O {[%clk 00:02:50]} {[%emt 00:00:10]} Rf7 {[%clk 00:02:35]} {[%emt 00:00:30]}
22. Rfe1 {[%clk 00:02:50]} {[%emt 00:00:03]} Nc6 {[%clk 00:02:25]} {[%emt
00:00:13]} 23. Qf3 {[%clk 00:02:34]} {[%emt 00:00:19]} Nxd4 {[%clk 00:01:59]}
{[%emt 00:00:29]} 24. Bxd4 {[%clk 00:02:07]} {[%emt 00:00:30]} Qxd4 {[%clk
00:01:59]} {[%emt 00:00:01]} 25. cxb6 {[%clk 00:02:07]} {[%emt 00:00:02]} Qxb6
{[%clk 00:01:35]} {[%emt 00:00:27]} 26. Nf4 {[%clk 00:02:02]} {[%emt 00:00:07]}
Qc6 {[%clk 00:01:23]} {[%emt 00:00:15]} 27. Qe3 {[%clk 00:02:00]} {[%emt
00:00:06]} Qc5 {[%clk 00:01:17]} {[%emt 00:00:08]} 28. Nxe6 {[%clk 00:01:35]}
{[%emt 00:00:29]} Qxe3 {[%clk 00:01:17]} 29. Rxe3 {[%clk 00:01:35]} f4 {[%clk
00:01:17]} 30. Ree1 {[%clk 00:01:35]} {[%emt 00:00:04]} f3 {[%clk 00:01:17]}
{[%emt 00:00:02]} 31. gxf3 {[%clk 00:01:24]} {[%emt 00:00:14]} Rxf3 {[%clk
00:01:15]} {[%emt 00:00:04]} 32. Nd4 {[%clk 00:01:24]} {[%emt 00:00:02]} Rf4
{[%clk 00:01:14]} {[%emt 00:00:04]} 33. Rad1 {[%clk 00:01:17]} {[%emt
00:00:10]} Bg4 {[%clk 00:01:10]} {[%emt 00:00:06]} 34. Rd3 {[%clk 00:01:16]}
{[%emt 00:00:05]} Rd8 {[%clk 00:01:10]} {[%emt 00:00:02]} 35. f3 {[%clk
00:01:13]} {[%emt 00:00:06]} Rfxd4 {[%clk 00:01:10]} {[%emt 00:00:03]} 36. Rxd4
{[%clk 00:01:13]} {[%emt 00:00:02]} Rxd4 {[%clk 00:01:10]} 37. fxg4 {[%clk
00:01:13]} Rxg4+ {[%clk 00:01:10]} {[%emt 00:00:02]} 38. Kf2 {[%clk 00:01:13]}
Ra4 {[%clk 00:01:08]} {[%emt 00:00:05]} 39. Re3 {[%clk 00:01:13]} Kh7 {[%clk
00:01:08]} 40. Kg3 {[%clk 00:01:13]} {[%emt 00:00:02]} g5 {[%clk 00:01:08]}
{[%emt 00:00:03]} 41. Rc3 {[%clk 00:01:13]} {[%emt 00:00:01]} Kg6 {[%clk
00:01:08]} {[%emt 00:00:02]} 42. Kh3 {[%clk 00:01:13]} {[%emt 00:00:01]} Rd4
{[%clk 00:01:03]} {[%emt 00:00:08]} 43. Rc6+ {[%clk 00:01:11]} {[%emt
00:00:06]} Kh5 44. Ra6 g4+ {[%clk 00:00:46]} {[%emt 00:00:19]} 45. Kg2 {[%clk
00:01:06]} {[%emt 00:00:08]} Rd2+ {[%clk 00:00:45]} {[%emt 00:00:04]} 46. Kg3
{[%clk 00:01:06]} Rd3+ {[%clk 00:00:45]} 47. Kg2 {[%clk 00:01:06]} Kg5 {[%clk
00:00:45]} {[%emt 00:00:04]} 48. Rxa7 {[%clk 00:01:06]} {[%emt 00:00:02]} h5
{[%clk 00:00:45]} 49. a4 {[%clk 00:01:06]} {[%emt 00:00:02]} Kh4 {[%clk
00:00:45]} {[%emt 00:00:02]} 50. Rb7 {[%clk 00:01:01]} {[%emt 00:00:09]} Rd2+
{[%clk 00:00:45]} {[%emt 00:00:01]} 51. Kg1 {[%clk 00:00:51]} {[%emt 00:00:12]}
Ra2 {[%clk 00:00:42]} {[%emt 00:00:06]} 52. Rb4 {[%clk 00:00:41]} {[%emt
00:00:14]} Kh3 {[%clk 00:00:42]} {[%emt 00:00:02]} 53. Rb5 {[%clk 00:00:36]}
{[%emt 00:00:08]} h4 {[%clk 00:00:40]} {[%emt 00:00:04]} 54. a5 {[%clk
00:00:36]} {[%emt 00:00:01]} g3 {[%clk 00:00:40]} {[%emt 00:00:02]} 0-1

[Event "15e Open International de Quenza"]
[Site "Quenza"]
[Date "2026.07.05"]
[Round "9.5"]
[White "TERNAULT, Mathieu"]
[Black "SUMETS, Andrey"]
[Result "0-1"]
[TimeControl "5min+3s"]
[WhiteTitle "FM"]
[BlackTitle "GM"]
[WhiteFideId "-"]
[BlackFideId "-"]
[WhiteElo "2188"]
[BlackElo "2470"]

1. d4 {[%clk 00:05:03]} {[%emt 00:00:02]} Nf6 {[%clk 00:05:03]} 2. Nf3 {[%clk
00:05:03]} {[%emt 00:00:03]} d5 {[%clk 00:05:03]} {[%emt 00:00:02]} 3. c3
{[%clk 00:05:03]} {[%emt 00:00:02]} e6 {[%clk 00:04:52]} {[%emt 00:00:15]} 4.
Bg5 {[%clk 00:05:03]} {[%emt 00:00:02]} Be7 {[%clk 00:04:47]} {[%emt 00:00:09]}
5. Nbd2 {[%clk 00:05:03]} {[%emt 00:00:02]} Nbd7 {[%clk 00:04:45]} {[%emt
00:00:05]} 6. e3 {[%clk 00:05:03]} {[%emt 00:00:01]} b6 {[%clk 00:04:45]}
{[%emt 00:00:04]} 7. Ne5 {[%clk 00:04:22]} {[%emt 00:00:44]} Nxe5 {[%clk
00:04:43]} {[%emt 00:00:05]} 8. dxe5 {[%clk 00:04:22]} {[%emt 00:00:02]} Nd7
{[%clk 00:04:43]} {[%emt 00:00:01]} 9. Bf4 {[%clk 00:04:20]} {[%emt 00:00:05]}
Bb7 {[%clk 00:04:42]} {[%emt 00:00:04]} 10. h4 {[%clk 00:04:20]} {[%emt
00:00:03]} h5 {[%clk 00:04:19]} {[%emt 00:00:27]} 11. Nf3 {[%clk 00:03:26]}
{[%emt 00:00:57]} c5 {[%clk 00:04:09]} {[%emt 00:00:13]} 12. Ng5 {[%clk
00:03:16]} {[%emt 00:00:13]} Qc7 {[%clk 00:03:52]} {[%emt 00:00:19]} 13. Qf3
{[%clk 00:02:47]} {[%emt 00:00:32]} d4 {[%clk 00:03:28]} {[%emt 00:00:29]} 14.
Qg3 {[%clk 00:02:47]} dxc3 {[%clk 00:03:16]} {[%emt 00:00:15]} 15. bxc3 {[%clk
00:02:47]} {[%emt 00:00:01]} c4 {[%clk 00:03:11]} {[%emt 00:00:07]} 16. Be2
{[%clk 00:02:47]} {[%emt 00:00:02]} Nc5 {[%clk 00:03:11]} {[%emt 00:00:02]} 17.
O-O {[%clk 00:02:22]} {[%emt 00:00:28]} Nd3 {[%clk 00:03:08]} {[%emt 00:00:06]}
18. Rfd1 {[%clk 00:01:50]} {[%emt 00:00:34]} Rd8 {[%clk 00:03:08]} {[%emt
00:00:02]} 19. Bf3 {[%clk 00:01:42]} {[%emt 00:00:11]} Bxf3 {[%clk 00:02:27]}
{[%emt 00:00:44]} 20. Qxf3 {[%clk 00:01:18]} {[%emt 00:00:28]} Bxg5 {[%clk
00:02:03]} {[%emt 00:00:27]} 21. hxg5 {[%clk 00:00:47]} {[%emt 00:00:34]} g6
{[%clk 00:01:54]} {[%emt 00:00:13]} 22. a4 {[%clk 00:00:46]} {[%emt 00:00:05]}
O-O {[%clk 00:01:52]} {[%emt 00:00:05]} 23. Rdb1 {[%clk 00:00:38]} {[%emt
00:00:10]} Rd5 {[%clk 00:01:52]} {[%emt 00:00:04]} 24. Rb5 {[%clk 00:00:32]}
{[%emt 00:00:09]} Rfd8 {[%clk 00:01:52]} {[%emt 00:00:02]} 25. Rxd5 {[%clk
00:00:22]} {[%emt 00:00:13]} Rxd5 {[%clk 00:01:52]} {[%emt 00:00:02]} 26. Bg3
{[%clk 00:00:15]} {[%emt 00:00:10]} Qe7 {[%clk 00:01:43]} {[%emt 00:00:11]} 27.
a5 {[%clk 00:00:15]} {[%emt 00:00:03]} Rxa5 {[%clk 00:01:38]} {[%emt 00:00:08]}
28. Rxa5 {[%clk 00:00:15]} bxa5 {[%clk 00:01:38]} 29. Qa8+ {[%clk 00:00:15]}
{[%emt 00:00:01]} Kg7 {[%clk 00:01:38]} 30. Qc6 {[%clk 00:00:08]} {[%emt
00:00:10]} Qc5 {[%clk 00:01:23]} {[%emt 00:00:18]} 31. Qd7 {[%clk 00:00:08]}
{[%emt 00:00:03]} Qd5 {[%clk 00:01:22]} {[%emt 00:00:03]} 32. Qe7 {[%clk
00:00:08]} {[%emt 00:00:03]} a4 {[%clk 00:01:17]} {[%emt 00:00:09]} 33. Qxa7
{[%clk 00:00:08]} {[%emt 00:00:02]} Ne1 {[%clk 00:01:01]} {[%emt 00:00:18]} 34.
Qe7 {[%clk 00:00:05]} {[%emt 00:00:06]} Qxg2# {[%emt 00:00:03]} 0-1

[Event "15e Open International de Quenza"]
[Site "Quenza"]
[Date "2026.07.05"]
[Round "9.1"]
[White "TREGUBOV, Pavel V."]
[Black "MAURIZZI, Marc Andria"]
[Result "0-1"]
[TimeControl "5min+3s"]
[WhiteTitle "GM"]
[BlackTitle "GM"]
[WhiteFideId "-"]
[BlackFideId "-"]
[WhiteElo "2391"]
[BlackElo "2556"]

1. d4 {[%clk 00:05:03]} Nf6 {[%clk 00:05:02]} {[%emt 00:00:04]} 2. c4 {[%clk
00:05:03]} e6 {[%clk 00:05:02]} 3. Nc3 {[%clk 00:05:03]} d5 {[%clk 00:05:02]} 4.
Bg5 {[%clk 00:05:03]} {[%emt 00:00:02]} Nbd7 {[%clk 00:04:54]} {[%emt
00:00:12]} 5. e3 {[%clk 00:05:03]} {[%emt 00:00:01]} c6 {[%clk 00:04:54]}
{[%emt 00:00:03]} 6. Nf3 {[%clk 00:05:01]} {[%emt 00:00:05]} Be7 {[%clk
00:04:54]} {[%emt 00:00:03]} 7. Bd3 {[%clk 00:04:57]} {[%emt 00:00:07]} h6
{[%clk 00:04:54]} {[%emt 00:00:03]} 8. Bh4 {[%clk 00:04:57]} {[%emt 00:00:01]}
O-O {[%clk 00:04:53]} {[%emt 00:00:04]} 9. O-O {[%clk 00:04:57]} {[%emt
00:00:01]} dxc4 {[%clk 00:04:53]} {[%emt 00:00:01]} 10. Bxc4 {[%clk 00:04:57]}
{[%emt 00:00:01]} b5 {[%clk 00:04:53]} 11. Bd3 {[%clk 00:04:55]} {[%emt
00:00:05]} Bb7 {[%clk 00:04:53]} 12. e4 {[%clk 00:04:21]} {[%emt 00:00:37]} b4
{[%clk 00:04:26]} {[%emt 00:00:31]} 13. Na4 {[%clk 00:04:21]} {[%emt 00:00:01]}
c5 {[%clk 00:04:08]} {[%emt 00:00:21]} 14. e5 {[%clk 00:03:27]} {[%emt
00:00:57]} Nd5 {[%clk 00:04:08]} {[%emt 00:00:02]} 15. Bg3 {[%clk 00:03:27]}
{[%emt 00:00:01]} Rc8 {[%clk 00:03:59]} {[%emt 00:00:12]} 16. Qe2 {[%clk
00:03:25]} {[%emt 00:00:05]} Qa5 {[%clk 00:03:34]} {[%emt 00:00:28]} 17. Nxc5
{[%clk 00:03:12]} {[%emt 00:00:16]} Nxc5 {[%clk 00:03:34]} {[%emt 00:00:01]} 18.
dxc5 {[%clk 00:03:12]} {[%emt 00:00:01]} Qxc5 {[%clk 00:03:20]} {[%emt
00:00:18]} 19. h4 {[%clk 00:03:07]} {[%emt 00:00:08]} Nb6 {[%clk 00:03:09]}
{[%emt 00:00:13]} 20. Bf4 {[%clk 00:02:49]} {[%emt 00:00:22]} Rfd8 {[%clk
00:03:09]} {[%emt 00:00:01]} 21. Rac1 {[%clk 00:02:36]} {[%emt 00:00:15]} Qa5
{[%clk 00:02:17]} {[%emt 00:00:56]} 22. Bb1 {[%clk 00:02:36]} {[%emt 00:00:02]}
Qa6 {[%clk 00:02:12]} {[%emt 00:00:08]} 23. Qe3 {[%clk 00:02:11]} {[%emt
00:00:28]} Nc4 {[%clk 00:02:00]} {[%emt 00:00:15]} 24. Qb3 {[%clk 00:02:11]}
{[%emt 00:00:01]} Qb5 {[%clk 00:01:38]} {[%emt 00:00:26]} 25. Qc2 {[%clk
00:02:07]} {[%emt 00:00:06]} g6 {[%clk 00:01:37]} {[%emt 00:00:05]} 26. Qe2
{[%clk 00:02:07]} Bxf3 {[%clk 00:01:34]} {[%emt 00:00:05]} 27. Qxf3 {[%clk
00:02:04]} {[%emt 00:00:06]} Nxe5 {[%clk 00:00:59]} {[%emt 00:00:38]} 28. Qg3
{[%clk 00:02:04]} {[%emt 00:00:01]} Rxc1 {[%clk 00:00:59]} {[%emt 00:00:01]} 29.
Rxc1 {[%clk 00:01:54]} {[%emt 00:00:12]} Nd3 {[%clk 00:00:56]} {[%emt
00:00:07]} 30. Rd1 {[%clk 00:01:16]} {[%emt 00:00:41]} Nxf4 {[%clk 00:00:56]}
{[%emt 00:00:02]} 31. Rxd8+ {[%clk 00:01:16]} Bxd8 {[%clk 00:00:56]} 32. Qxf4
{[%clk 00:01:16]} {[%emt 00:00:01]} h5 {[%clk 00:00:36]} {[%emt 00:00:23]} 33.
g3 {[%clk 00:01:15]} {[%emt 00:00:04]} Bb6 {[%clk 00:00:35]} {[%emt 00:00:05]}
34. Kg2 {[%clk 00:01:04]} {[%emt 00:00:13]} Qd5+ {[%clk 00:00:35]} {[%emt
00:00:02]} 35. Qe4 {[%clk 00:00:46]} {[%emt 00:00:21]} Qd2 {[%clk 00:00:33]}
{[%emt 00:00:04]} 36. Qc2 {[%clk 00:00:46]} {[%emt 00:00:01]} Qe1 {[%clk
00:00:31]} {[%emt 00:00:05]} 37. Kf3 {[%clk 00:00:21]} {[%emt 00:00:29]} a5
{[%clk 00:00:29]} {[%emt 00:00:05]} 38. b3 {[%clk 00:00:20]} {[%emt 00:00:04]}
Bxf2 {[%clk 00:00:29]} {[%emt 00:00:02]} 39. Qxf2 {[%clk 00:00:20]} {[%emt
00:00:01]} Qxb1 {[%clk 00:00:29]} 40. Qd2 {[%clk 00:00:16]} {[%emt 00:00:07]}
Qf5+ {[%clk 00:00:29]} {[%emt 00:00:02]} 41. Ke3 {[%clk 00:00:16]} {[%emt
00:00:02]} Qe5+ {[%clk 00:00:29]} {[%emt 00:00:02]} 42. Kf2 {[%clk 00:00:16]}
{[%emt 00:00:02]} Kg7 {[%clk 00:00:29]} {[%emt 00:00:03]} 43. Qc2 {[%clk
00:00:11]} {[%emt 00:00:09]} 0-1

[Event "15e Open International de Quenza"]
[Site "Quenza"]
[Date "2026.07.05"]
[Round "9.7"]
[White "KJARTANSSON, Gudmundur"]
[Black "KOSTENIUK, Alexandra"]
[Result "0-1"]
[TimeControl "5min+3s"]
[WhiteTitle "GM"]
[BlackTitle "GM"]
[WhiteFideId "-"]
[BlackFideId "-"]
[WhiteElo "2367"]
[BlackElo "2392"]

1. d4 {[%clk 00:05:03]} Nf6 {[%clk 00:05:03]} {[%emt 00:00:01]} 2. c4 {[%clk
00:05:03]} {[%emt 00:00:01]} e6 {[%clk 00:05:03]} 3. Nf3 {[%clk 00:05:03]} Bb4+
4. Nbd2 O-O {[%clk 00:05:01]} {[%emt 00:00:06]} 5. a3 {[%clk 00:05:03]} {[%emt
00:00:02]} Be7 {[%clk 00:05:01]} 6. e4 {[%clk 00:05:03]} d6 {[%clk 00:05:01]}
{[%emt 00:00:01]} 7. Bd3 {[%clk 00:04:59]} {[%emt 00:00:07]} Nfd7 {[%clk
00:05:01]} 8. O-O {[%clk 00:04:55]} {[%emt 00:00:08]} e5 {[%clk 00:05:01]}
{[%emt 00:00:03]} 9. b4 {[%clk 00:04:42]} {[%emt 00:00:16]} exd4 {[%clk
00:05:01]} {[%emt 00:00:02]} 10. Nxd4 {[%clk 00:04:42]} {[%emt 00:00:03]} Bf6
{[%clk 00:05:01]} {[%emt 00:00:02]} 11. N2b3 {[%clk 00:04:05]} {[%emt
00:00:40]} c5 {[%clk 00:05:01]} {[%emt 00:00:01]} 12. Nb5 {[%clk 00:09:29]}
{[%emt 00:00:19]} Bxa1 {[%clk 00:04:57]} {[%emt 00:00:06]} 13. Nxa1 {[%clk
00:03:49]} {[%emt 00:00:01]} Ne5 {[%clk 00:04:55]} {[%emt 00:00:06]} 14. Be2
{[%clk 00:03:49]} {[%emt 00:00:01]} Nbc6 {[%clk 00:04:34]} {[%emt 00:00:24]} 15.
Nc2 {[%clk 00:03:21]} {[%emt 00:00:30]} cxb4 {[%clk 00:03:34]} {[%emt
00:01:03]} 16. axb4 {[%clk 00:03:21]} {[%emt 00:00:02]} a5 {[%clk 00:03:30]}
{[%emt 00:00:07]} 17. bxa5 {[%clk 00:03:12]} {[%emt 00:00:12]} Nxa5 {[%clk
00:03:30]} {[%emt 00:00:01]} 18. Ne3 {[%clk 00:03:10]} {[%emt 00:00:04]} Be6
{[%clk 00:03:24]} {[%emt 00:00:10]} 19. Nxd6 {[%clk 00:03:07]} {[%emt
00:00:06]} Qc7 {[%clk 00:03:22]} {[%emt 00:00:05]} 20. f4 {[%clk 00:03:07]}
{[%emt 00:00:01]} Nexc4 {[%clk 00:03:18]} {[%emt 00:00:07]} 21. e5 {[%clk
00:02:07]} {[%emt 00:01:04]} Nxd6 {[%clk 00:03:03]} {[%emt 00:00:17]} 22. exd6
{[%clk 00:02:07]} {[%emt 00:00:03]} Qb6 {[%clk 00:03:03]} 23. f5 {[%clk
00:02:04]} {[%emt 00:00:05]} Bb3 {[%clk 00:03:03]} {[%emt 00:00:02]} 24. Qd2
{[%clk 00:01:43]} {[%emt 00:00:24]} Rfd8 {[%clk 00:03:03]} {[%emt 00:00:02]} 25.
Ba3 {[%clk 00:01:23]} {[%emt 00:00:23]} Nc4 {[%clk 00:03:03]} {[%emt 00:00:01]}
26. Bxc4 {[%clk 00:00:56]} {[%emt 00:00:30]} Bxc4 {[%clk 00:03:03]} {[%emt
00:00:01]} 27. Ra1 {[%clk 00:00:47]} {[%emt 00:00:12]} Rxd6 {[%clk 00:02:40]}
{[%emt 00:00:26]} 28. Qf2 {[%clk 00:00:38]} {[%emt 00:00:11]} Qd4 {[%clk
00:02:27]} {[%emt 00:00:16]} 29. Re1 {[%clk 00:00:22]} {[%emt 00:00:20]} Rxa3
{[%clk 00:02:04]} {[%emt 00:00:26]} 30. Nxc4 {[%clk 00:00:22]} Qxf2+ {[%clk
00:02:04]} {[%emt 00:00:01]} 31. Kxf2 {[%clk 00:00:22]} {[%emt 00:00:01]} Ra2+
{[%clk 00:02:04]} 32. Kf3 {[%clk 00:00:16]} {[%emt 00:00:09]} Rd3+ {[%clk
00:02:02]} {[%emt 00:00:05]} 33. Ke4 {[%clk 00:00:14]} {[%emt 00:00:04]} Rd8
{[%clk 00:02:02]} {[%emt 00:00:03]} 34. Kf3 {[%clk 00:00:12]} {[%emt 00:00:06]}
b5 {[%clk 00:01:57]} {[%emt 00:00:08]} 35. Ne3 {[%clk 00:00:12]} f6 {[%clk
00:01:50]} {[%emt 00:00:10]} 36. Rb1 {[%clk 00:00:12]} {[%emt 00:00:01]} Ra3
{[%clk 00:01:49]} {[%emt 00:00:05]} 0-1

[Event "15e Open International de Quenza"]
[Site "Quenza"]
[Date "2026.07.05"]
[Round "9.12"]
[White "TERRIEUX, Kevin"]
[Black "APPIETTO, Andria"]
[Result "0-1"]
[TimeControl "5min+3s"]
[WhiteTitle "IM"]
[BlackTitle "-"]
[WhiteFideId "-"]
[BlackFideId "-"]
[WhiteElo "2451"]
[BlackElo "1815"]

1. e4 {[%clk 00:05:03]} c5 {[%clk 00:05:03]} 2. Nf3 {[%clk 00:05:03]} {[%emt
00:00:02]} Nc6 {[%clk 00:05:03]} 3. Bb5 {[%clk 00:05:03]} {[%emt 00:00:01]} g6
{[%clk 00:05:03]} {[%emt 00:00:02]} 4. O-O {[%clk 00:05:00]} {[%emt 00:00:06]}
Nf6 {[%clk 00:05:03]} 5. e5 {[%clk 00:04:52]} {[%emt 00:00:11]} Nd5 {[%clk
00:05:03]} {[%emt 00:00:03]} 6. Nc3 {[%clk 00:04:49]} {[%emt 00:00:07]} Nc7
{[%clk 00:05:03]} 7. Bxc6 {[%clk 00:04:46]} {[%emt 00:00:06]} dxc6 {[%clk
00:04:23]} {[%emt 00:00:43]} 8. Ne4 {[%clk 00:04:45]} {[%emt 00:00:03]} b6
{[%clk 00:04:23]} {[%emt 00:00:02]} 9. Re1 {[%clk 00:04:45]} Bg7 {[%clk
00:04:23]} {[%emt 00:00:01]} 10. Nf6+ {[%clk 00:04:44]} {[%emt 00:00:04]} Kf8
{[%clk 00:04:23]} {[%emt 00:00:01]} 11. Ne4 {[%clk 00:04:44]} {[%emt 00:00:02]}
Bg4 {[%clk 00:04:13]} {[%emt 00:00:13]} 12. d3 {[%clk 00:04:15]} {[%emt
00:00:32]} Kg8 {[%clk 00:04:05]} {[%emt 00:00:11]} 13. h3 {[%clk 00:04:01]}
{[%emt 00:00:17]} Bxf3 {[%clk 00:03:30]} {[%emt 00:00:38]} 14. Qxf3 {[%clk
00:04:01]} {[%emt 00:00:01]} Ne6 {[%clk 00:03:20]} {[%emt 00:00:13]} 15. Ng5
{[%clk 00:03:34]} {[%emt 00:00:30]} Nxg5 {[%clk 00:03:12]} {[%emt 00:00:12]} 16.
Bxg5 {[%clk 00:03:34]} {[%emt 00:00:02]} h6 {[%clk 00:03:12]} 17. Bh4 {[%clk
00:03:25]} {[%emt 00:00:13]} Qe8 {[%clk 00:03:05]} {[%emt 00:00:10]} 18. c3
{[%clk 00:02:42]} {[%emt 00:00:45]} Rd8 {[%clk 00:02:58]} {[%emt 00:00:10]} 19.
e6 {[%clk 00:02:38]} {[%emt 00:00:07]} f6 {[%clk 00:02:44]} {[%emt 00:00:17]}
20. Bg3 {[%clk 00:02:34]} {[%emt 00:00:06]} Kh7 {[%clk 00:02:41]} {[%emt
00:00:06]} 21. a4 {[%clk 00:02:31]} {[%emt 00:00:07]} a5 {[%clk 00:02:41]}
{[%emt 00:00:03]} 22. Bc7 {[%clk 00:02:31]} {[%emt 00:00:03]} Rd5 {[%clk
00:02:30]} {[%emt 00:00:14]} 23. Bxb6 {[%clk 00:02:22]} {[%emt 00:00:12]} Qb8
{[%clk 00:02:30]} {[%emt 00:00:01]} 24. c4 {[%clk 00:02:17]} {[%emt 00:00:08]}
Re5 {[%clk 00:02:20]} {[%emt 00:00:14]} 25. Qxc6 {[%clk 00:02:01]} {[%emt
00:00:20]} Rc8 {[%clk 00:02:08]} {[%emt 00:00:14]} 26. Qd7 {[%clk 00:01:58]}
{[%emt 00:00:05]} Re8 {[%clk 00:01:49]} {[%emt 00:00:22]} 27. Rxe5 {[%clk
00:01:58]} {[%emt 00:00:04]} fxe5 {[%clk 00:01:49]} 28. Rf1 {[%clk 00:01:39]}
{[%emt 00:00:21]} Rf8 {[%clk 00:01:41]} {[%emt 00:00:12]} 29. Bxc5 {[%clk
00:01:39]} {[%emt 00:00:02]} Qxb2 {[%clk 00:01:41]} {[%emt 00:00:03]} 30. Bxe7
{[%clk 00:01:36]} {[%emt 00:00:07]} Rf4 {[%clk 00:01:15]} {[%emt 00:00:26]} 31.
Bc5 {[%clk 00:01:35]} {[%emt 00:00:05]} e4 {[%clk 00:01:01]} {[%emt 00:00:17]}
32. e7 {[%clk 00:01:35]} {[%emt 00:00:04]} e3 {[%clk 00:00:38]} {[%emt
00:00:27]} 33. Bxe3 {[%clk 00:01:34]} {[%emt 00:00:03]} 0-1